lending/lending_fUSD_20250913
["ID","MTS","AMOUNT","RATE_DAILY","PERIOD"]
[385362889,1757790837913,-1201.25,0.00032602,2]
[385362890,1757790837926,-1420.48,0.00032602,2]
[385362891,1757790837940,-436.7,0.00032602,2]
[385362892,1757790837954,-886.97,0.00032602,2]
[385362893,1757790837969,-695.44,0.00032602,2]
[385362894,1757790837983,-1459.76,0.00032602,2]
[385362895,1757790837998,-869.21,0.00032602,2]
[385362896,1757790838012,-563.58,0.00032602,2]
[385362897,1757790838027,-565.26,0.00032602,2]
[385362898,1757790838042,-1134.89,0.00032602,2]
[385362899,1757790838056,-404.56,0.00032602,2]
[385362900,1757790838070,-734.93,0.00032602,2]
[385362901,1757790838085,-1149.23,0.00032602,2]
[385362902,1757790838099,-1190.66,0.00032602,2]
[385362903,1757790838113,-656.39,0.00032602,2]
[385362904,1757790838128,-1130.2,0.00032602,2]
[385362905,1757790838143,-914.37,0.00032602,2]
[385362906,1757790838580,-869.45,0.00032602,2]
[385362907,1757790838594,-251.59962144,0.00032602,2]
[385362908,1757790838604,-459.11,0.00032602,2]
[385362909,1757790838613,-1022.06,0.00032602,2]
[385362910,1757790838624,-400.0,0.00032602,2]
[385362911,1757790838633,-516.71,0.00032602,2]
[385362912,1757790838641,-400.0,0.00032602,2]
[385362913,1757790838650,-1379.73,0.00032602,2]
[385362914,1757790838659,-899.94,0.00032602,2]
[385362915,1757790838669,-866.46,0.00032602,2]
[385362916,1757790838678,-556.4,0.00032602,2]
[385362917,1757790838687,-400.0,0.00032602,2]
[385362918,1757790838696,-1195.99,0.00032602,2]
[385362919,1757790838705,-518.54,0.00032602,2]
[385362920,1757790838713,-1740.08,0.00032602,2]
[385362921,1757790838722,-1006.76,0.00032602,2]
[385362922,1757790838730,-668.89,0.00032602,2]
[385362923,1757790838740,-529.54,0.00032602,2]
[385362924,1757790838750,-927.44,0.00032602,2]
[385362925,1757790838759,-662.77,0.00032602,2]
[385362926,1757790838769,-586.65,0.00032602,2]
[385362927,1757790838778,-744.19,0.00032602,2]
[385362928,1757790838787,-899.11,0.00032602,2]
[385362929,1757790838796,-770.78,0.00032602,2]
[385362930,1757790838805,-644.35,0.00032602,2]
[385362931,1757790838814,-714.15,0.00032602,2]
[385362932,1757790838823,-453.23,0.00032602,2]
[385362933,1757790838832,-1002.56,0.00032602,2]
[385362934,1757790838841,-809.12,0.00032602,2]
[385362935,1757790838850,-400.0,0.00032602,2]
[385362936,1757790838860,-864.64,0.00032602,2]
[385362937,1757790838869,-836.53,0.00032602,2]
[385362938,1757790838880,-400.0,0.00032602,2]
[385362939,1757790838889,-400.0,0.00032602,2]
[385362940,1757790838898,-800.39,0.00032602,2]
[385362941,1757790838907,-759.84,0.00032602,2]
[385362942,1757790838916,-438.06,0.00032602,2]
[385362943,1757790838926,-1067.29,0.00032602,2]
[385362944,1757790838935,-483.11,0.00032602,2]
[385362945,1757790838944,-890.46,0.00032602,2]
[385362946,1757790838954,-621.88,0.00032602,2]
[385362947,1757790838965,-1123.98,0.00032602,2]
[385362948,1757790838974,-489.4558143,0.00032602,2]
[385362949,1757790838983,-440.32,0.00032602,2]
[385362950,1757790838992,-2863.78,0.00032602,2]
[385362951,1757790839001,-757.94,0.00032602,2]
[385362952,1757790839011,-400.0,0.00032602,2]
[385362953,1757790839020,-557.63,0.00032602,2]
[385362954,1757790839029,-861.65,0.00032602,2]
[385362955,1757790839040,-803.76,0.00032602,2]
[385362956,1757790839051,-835.94,0.00032602,2]
[385362957,1757790839060,-434.25,0.00032602,2]
[385362958,1757790839069,-578.44,0.00032602,2]
[385362959,1757790839078,-550.07,0.00032602,2]
[385362960,1757790839087,-800.87,0.00032602,2]
[385362961,1757790839096,-400.0,0.00032602,2]
[385362962,1757790839105,-541.06,0.00032602,2]
[385362963,1757790839114,-400.0,0.00032602,2]
[385362964,1757790839123,-652.82,0.00032602,2]
[385362965,1757790839133,-400.0,0.00032602,2]
[385362966,1757790839142,-423.72,0.00032602,2]
[385362967,1757790839151,-1300.44,0.00032602,2]
[385362968,1757790839160,-439.16,0.00032602,2]
[385362969,1757790839169,-826.3,0.00032602,2]
[385362970,1757790839178,-787.45,0.00032602,2]
[385362971,1757790839187,-535.57,0.00032602,2]
[385362972,1757790839196,-800.47,0.00032602,2]
[385362973,1757790839205,-1253.6,0.00032602,2]
[385362974,1757790839214,-544.69,0.00032602,2]
[385362975,1757790839223,-944.98,0.00032602,2]
[385362976,1757790839232,-556.97,0.00032602,2]
[385362977,1757790839241,-652.8,0.00032602,2]
[385362978,1757790839251,-842.01,0.00032602,2]
[385362979,1757790839260,-489.49,0.00032602,2]
[385362980,1757790839270,-1082.49,0.00032602,2]
[385362981,1757790839279,-285.67085368,0.00032602,2]
[385362982,1757790839288,-439.06,0.00032602,2]
[385362983,1757790839296,-890.6,0.00032602,2]
[385362984,1757790839305,-589.14,0.00032602,2]
[385362985,1757790839314,-583.29,0.00032602,2]
[385362986,1757790839323,-708.58,0.00032602,2]
[385362987,1757790839332,-531.52,0.00032602,2]
[385362988,1757790839342,-1252.15,0.00032602,2]
[385362989,1757790839351,-947.61,0.00032602,2]
[385362990,1757790839360,-400.0,0.00032602,2]
[385362991,1757790839370,-1050.56,0.00032602,2]
[385362992,1757790839379,-872.42,0.00032602,2]
[385362993,1757790839388,-791.71,0.00032602,2]
[385362994,1757790839397,-407.96,0.00032602,2]
[385362995,1757790839406,-400.0,0.00032602,2]
[385362996,1757790839415,-983.81,0.00032602,2]
[385362997,1757790839423,-868.8,0.00032602,2]
[385362998,1757790839433,-846.53,0.00032602,2]
[385362999,1757790839442,-2593.64,0.00032602,2]
[385363000,1757790839451,-730.89,0.00032602,2]
[385363001,1757790839460,-785.21,0.00032602,2]
[385363002,1757790839469,-447.29,0.00032602,2]
[385363003,1757790839478,-964.92,0.00032602,2]
[385363004,1757790839488,-263.77949715,0.00032602,2]
[385363005,1757790839497,-400.0,0.00032602,2]
[385363006,1757790839511,-759.47,0.00032602,2]
[385363007,1757790839519,-428.63,0.00032602,2]
[385363008,1757790839529,-279.47490338,0.00032602,2]
[385363009,1757790839538,-620.45,0.00032602,2]
[385363010,1757790839549,-537.7,0.00032602,2]
[385363011,1757790839558,-862.8,0.00032602,2]
[385363012,1757790839567,-505.66,0.00032602,2]
[385363013,1757790839576,-427.09,0.00032602,2]
[385363014,1757790839585,-400.0,0.00032602,2]
[385363015,1757790839595,-400.0,0.00032602,2]
[385363016,1757790839604,-1263.32,0.00032602,2]
[385363017,1757790839613,-400.0,0.00032602,2]
[385363018,1757790839623,-786.15,0.00032602,2]
[385363019,1757790839632,-400.0,0.00032602,2]
[385363020,1757790839641,-769.42,0.00032602,2]
[385363021,1757790839650,-4665.54,0.00032602,2]
[385363022,1757790839660,-958.92,0.00032602,2]
[385363023,1757790839670,-1162.64,0.00032602,2]
[385363024,1757790839679,-843.12,0.00032602,2]
[385363025,1757790839689,-830.89,0.00032602,2]
[385363026,1757790839698,-871.15,0.00032602,2]
[385363027,1757790839707,-484.74,0.00032602,2]
[385363028,1757790839716,-1106.22,0.00032602,2]
[385363029,1757790839724,-582.6,0.00032602,2]
[385363030,1757790839733,-1197.3,0.00032602,2]
[385363031,1757790839743,-3316.79,0.00032602,2]
[385363032,1757790839752,-400.0,0.00032602,2]
[385363033,1757790839761,-338.88352719,0.00032602,2]
[385363034,1757790839770,-898.38,0.00032602,2]
[385363035,1757790839779,-744.46,0.00032602,2]
[385363036,1757790839788,-1081.81,0.00032602,2]
[385363037,1757790839797,-1406.57,0.00032602,2]
[385363038,1757790839806,-420.47,0.00032602,2]
[385363039,1757790839815,-2017.53,0.00032602,2]
[385363040,1757790839824,-752.16,0.00032602,2]
[385363041,1757790839832,-843.08,0.00032602,2]
[385363042,1757790839841,-729.82,0.00032602,2]
[385363043,1757790839850,-924.42,0.00032602,2]
[385363044,1757790839860,-715.39,0.00032602,2]
[385363045,1757790839869,-1791.52,0.00032602,2]
[385363046,1757790839877,-905.52,0.00032602,2]
[385363047,1757790839886,-1035.92,0.00032602,2]
[385363048,1757790839895,-405.71,0.00032602,2]
[385363049,1757790839903,-543.24,0.00032602,2]
[385363050,1757790839912,-1125.91,0.00032602,2]
[385363051,1757790839921,-405.06,0.00032602,2]
[385363052,1757790839930,-897.14,0.00032602,2]
[385363053,1757790839938,-838.71,0.00032602,2]
[385363054,1757790839948,-778.35,0.00032602,2]
[385363055,1757790839956,-519.54,0.00032602,2]
[385363056,1757790839965,-1097.98,0.00032602,2]
[385363057,1757790839974,-746.12,0.00032602,2]
[385363058,1757790839983,-812.08,0.00032602,2]
[385363059,1757790839992,-1172.1,0.00032602,2]
[385363060,1757790840001,-400.0,0.00032602,2]
[385363061,1757790840011,-1004.56,0.00032602,2]
[385363062,1757790840021,-1550.32,0.00032602,2]
[385363063,1757790840030,-406.12,0.00032602,2]
[385363064,1757790840039,-738.83,0.00032602,2]
[385363065,1757790840047,-1445.07,0.00032602,2]
[385363066,1757790840056,-400.0,0.00032602,2]
[385363067,1757790840065,-681.1,0.00032602,2]
[385363068,1757790840074,-488.25228488,0.00032602,2]
[385363069,1757790840084,-1822.15,0.00032602,2]
[385363070,1757790840093,-417.32,0.00032602,2]
[385363071,1757790840102,-1015.89,0.00032602,2]
[385363072,1757790840111,-636.43,0.00032602,2]
[385363073,1757790840120,-983.53,0.00032602,2]
[385363074,1757790840130,-722.69,0.00032602,2]
[385363075,1757790840139,-670.74,0.00032602,2]
[385363076,1757790840148,-458.09,0.00032602,2]
[385363077,1757790840157,-761.25,0.00032602,2]
[385363078,1757790840167,-589.72,0.00032602,2]
[385363079,1757790840176,-411.62,0.00032602,2]
[385363080,1757790840185,-422.08,0.00032602,2]
[385363081,1757790840195,-1393.14,0.00032602,2]
[385363082,1757790840205,-400.0,0.00032602,2]
[385363083,1757790840214,-400.0,0.00032602,2]
[385363084,1757790840223,-541.43,0.00032602,2]
[385363085,1757790840233,-1836.39,0.00032602,2]
[385363086,1757790840242,-1286.51,0.00032602,2]
[385363087,1757790840251,-806.89,0.00032602,2]
[385363088,1757790840261,-1118.88,0.00032602,2]
[385363089,1757790840271,-862.09,0.00032602,2]
[385363090,1757790840280,-3209.32,0.00032602,2]
[385363091,1757790840290,-2346.72,0.00032602,2]
[385363092,1757790840299,-1033.98,0.00032602,2]
[385363093,1757790840308,-400.0,0.00032602,2]
[385363094,1757790840318,-896.46,0.00032602,2]
[385363095,1757790840327,-837.65,0.00032602,2]
[385363096,1757790840338,-524.85,0.00032602,2]
[385363097,1757790840347,-941.17,0.00032602,2]
[385363098,1757790840357,-702.99,0.00032602,2]
[385363099,1757790840366,-1450.08,0.00032602,2]
[385363100,1757790840375,-872.8,0.00032602,2]
[385363101,1757790840386,-727.17,0.00032602,2]
[385363102,1757790840395,-711.83,0.00032602,2]
[385363103,1757790840403,-765.36,0.00032602,2]
[385363104,1757790840412,-778.2,0.00032602,2]
[385363105,1757790840421,-980.63,0.00032602,2]
[385363106,1757790840430,-2033.09,0.00032602,2]
[385363107,1757790840440,-677.3,0.00032602,2]
[385363108,1757790840450,-538.72,0.00032602,2]
[385363109,1757790840459,-1183.03,0.00032602,2]
[385363110,1757790840469,-722.19,0.00032602,2]
[385363111,1757790840479,-1015.48,0.00032602,2]
[385363112,1757790840488,-965.24,0.00032602,2]
[385363113,1757790840497,-599.03,0.00032602,2]
[385363114,1757790840512,-653.28,0.00032602,2]
[385363115,1757790840521,-974.74,0.00032602,2]
[385363116,1757790840530,-532.11,0.00032602,2]
[385363117,1757790840540,-775.6,0.00032602,2]
[385363118,1757790840549,-1047.99,0.00032602,2]
[385363119,1757790840558,-867.54,0.00032602,2]
[385363120,1757790840567,-741.23,0.00032602,2]
[385363121,1757790840577,-603.59,0.00032602,2]
[385363122,1757790840587,-2266.8,0.00032602,2]
[385363123,1757790840597,-1243.58,0.00032602,2]
[385363124,1757790840606,-835.84,0.00032602,2]
[385363125,1757790840616,-605.54,0.00032602,2]
[385363126,1757790840625,-526.24,0.00032602,2]
[385363127,1757790840635,-502.15,0.00032602,2]
[385363128,1757790840645,-462.88,0.00032602,2]
[385363129,1757790840655,-495.47,0.00032602,2]
[385363130,1757790840664,-2089.21,0.00032602,2]
[385363131,1757790840675,-1484.39,0.00032602,2]
[385363132,1757790840685,-858.84,0.00032602,2]
[385363133,1757790840695,-708.83,0.00032602,2]
[385363134,1757790840704,-1139.82,0.00032602,2]
[385363135,1757790840713,-676.37,0.00032602,2]
[385363136,1757790840722,-920.38,0.00032602,2]
[385363137,1757790840731,-785.36,0.00032602,2]
[385363138,1757790840740,-400.0,0.00032602,2]
[385363139,1757790840750,-1042.18,0.00032602,2]
[385363140,1757790840759,-714.23,0.00032602,2]
[385363141,1757790840768,-894.39,0.00032602,2]
[385363142,1757790840777,-647.42,0.00032602,2]
[385363143,1757790840786,-513.3,0.00032602,2]
[385363144,1757790840795,-924.41,0.00032602,2]
[385363145,1757790840805,-857.85,0.00032602,2]
[385363146,1757790840814,-2338.03,0.00032602,2]
[385363147,1757790840824,-1469.88,0.00032602,2]
[385363148,1757790840833,-841.74,0.00032602,2]
[385363149,1757790840842,-722.3,0.00032602,2]
[385363150,1757790840852,-814.0,0.00032602,2]
[385363151,1757790840861,-767.19,0.00032602,2]
[385363152,1757790840870,-415.27,0.00032602,2]
[385363153,1757790840879,-1229.51,0.00032602,2]
[385363154,1757790840890,-449.16,0.00032602,2]
[385363155,1757790840899,-1485.88,0.00032602,2]
[385363156,1757790840909,-844.21,0.00032602,2]
[385363157,1757790840918,-2265.68,0.00032602,2]
[385363158,1757790840927,-865.66,0.00032602,2]
[385363159,1757790840936,-863.57,0.00032602,2]
[385363160,1757790840946,-572.0,0.00032602,2]
[385363161,1757790840957,-2112.49,0.00032602,2]
[385363162,1757790840966,-510.21,0.00032602,2]
[385363163,1757790840976,-1107.28,0.00032602,2]
[385363164,1757790840986,-1170.47,0.00032602,2]
[385363165,1757790840995,-841.3,0.00032602,2]
[385363166,1757790841005,-856.96,0.00032602,2]
[385363167,1757790841015,-1028.51,0.00032602,2]
[385363168,1757790841024,-906.61,0.00032602,2]
[385363169,1757790841033,-1458.58,0.00032602,2]
[385363170,1757790841043,-1006.96,0.00032602,2]
[385363171,1757790841054,-701.85,0.00032602,2]
[385363172,1757790841063,-4256.1,0.00032602,2]
[385363173,1757790841072,-728.15,0.00032602,2]
[385363174,1757790841081,-925.96,0.00032602,2]
[385363175,1757790841090,-400.0,0.00032602,2]
[385363176,1757790841099,-330.11276067,0.00032602,2]
[385363177,1757790841108,-445.69,0.00032602,2]
[385363178,1757790841117,-1198.57,0.00032602,2]
[385363179,1757790841126,-1974.67,0.00032602,2]
[385363180,1757790841134,-2857.69,0.00032602,2]
[385363181,1757790841143,-847.13,0.00032602,2]
[385363182,1757790841152,-2990.98,0.00032602,2]
[385363183,1757790841161,-400.0,0.00032602,2]
[385363184,1757790841170,-834.58,0.00032602,2]
[385363185,1757790841179,-2302.98,0.00032602,2]
[385363186,1757790841188,-2111.33,0.00032602,2]
[385363187,1757790841196,-1747.56,0.00032602,2]
[385363188,1757790841205,-466.82,0.00032602,2]
[385363189,1757790841214,-400.0,0.00032602,2]
[385363190,1757790841223,-2233.25,0.00032602,2]
[385363191,1757790841233,-1255.2,0.00032602,2]
[385363192,1757790841242,-1963.87,0.00032602,2]
[385363193,1757790841251,-694.91,0.00032602,2]
[385363194,1757790841260,-807.66,0.00032602,2]
[385363195,1757790841269,-927.88,0.00032602,2]
[385363196,1757790841278,-400.0,0.00032602,2]
[385363197,1757790841288,-2263.39,0.00032602,2]
[385363198,1757790841298,-952.59,0.00032602,2]
[385363199,1757790841307,-1143.85,0.00032602,2]
[385363200,1757790841317,-931.48,0.00032602,2]
[385363201,1757790841326,-669.04,0.00032602,2]
[385363202,1757790841336,-429.56953747,0.00032602,2]
[385363203,1757790841345,-1333.33,0.00032602,2]
[385363204,1757790841354,-944.31,0.00032602,2]
[385363205,1757790841363,-711.99,0.00032602,2]
[385363206,1757790841373,-1030.24,0.00032602,2]
[385363207,1757790841382,-1798.63,0.00032602,2]
[385363208,1757790841391,-977.53,0.00032602,2]
[385363209,1757790841401,-1079.08,0.00032602,2]
[385363210,1757790841410,-568.52,0.00032602,2]
[385363211,1757790841419,-428.42425244,0.00032602,2]
[385363212,1757790841428,-923.82,0.00032602,2]
[385363213,1757790841437,-1374.51,0.00032602,2]
[385363214,1757790841447,-539.76,0.00032602,2]
[385363215,1757790841456,-532.15,0.00032602,2]
[385363216,1757790841466,-1021.66,0.00032602,2]
[385363217,1757790841475,-400.0,0.00032602,2]
[385363218,1757790841485,-796.82,0.00032602,2]
[385363219,1757790841495,-707.41,0.00032602,2]
[385363220,1757790841512,-923.85,0.00032602,2]
[385363221,1757790841521,-1683.27,0.00032602,2]
[385363222,1757790841530,-585.84,0.00032602,2]
[385363223,1757790841802,-1254.84,0.00032602,2]
[385363224,1757790841812,-786.29,0.00032602,2]
[385363225,1757790841821,-1026.54,0.00032602,2]
[385363226,1757790841830,-492.79,0.00032602,2]
[385363227,1757790841840,-2328.06,0.00032602,2]
[385363228,1757790841849,-1854.12,0.00032602,2]
[385363229,1757790841858,-1159.49,0.00032602,2]
[385363230,1757790841868,-1000.0,0.00032602,2]
[385363231,1757790841877,-1262.94,0.00032602,2]
[385363232,1757790841887,-3059.22,0.00032602,2]
[385363233,1757790841896,-618.58,0.00032602,2]
[385363234,1757790841906,-400.0,0.00032602,2]
[385363235,1757790841917,-536.53253263,0.00032602,2]
[385363236,1757790841927,-666.27,0.00032602,2]
[385363237,1757790841936,-2778.98,0.00032602,2]
[385363238,1757790841945,-1602.35,0.00032602,2]
[385363239,1757790841954,-438.09,0.00032602,2]
[385363240,1757790841964,-344.99,0.00032602,2]
[385363241,1757790841973,-523.76,0.00032602,2]
[385363242,1757790841983,-634.16,0.00032602,2]
[385363243,1757790841992,-887.05,0.00032602,2]
[385363244,1757790842001,-942.86,0.00032602,2]
[385363245,1757790842010,-1448.36,0.00032602,2]
[385363246,1757790842019,-1697.7,0.00032602,2]
[385363247,1757790842029,-655.13,0.00032602,2]
[385363248,1757790842038,-488.5,0.00032602,2]
[385363249,1757790842047,-1288.99,0.00032602,2]
[385363250,1757790842056,-2431.97,0.00032602,2]
[385363251,1757790842066,-693.6,0.00032602,2]
[385363252,1757790842075,-914.74,0.00032602,2]
[385363253,1757790842085,-985.78,0.00032602,2]
[385363254,1757790842093,-734.11,0.00032602,2]
[385363255,1757790842103,-1199.53,0.00032602,2]
[385363256,1757790842111,-492.5,0.00032602,2]
[385363257,1757790842120,-3119.56,0.00032602,2]
[385363258,1757790842129,-683.66,0.00032602,2]
[385363259,1757790842138,-426.49895789,0.00032602,2]
[385363260,1757790842147,-869.51,0.00032602,2]
[385363261,1757790842156,-1155.29,0.00032602,2]
[385363262,1757790842165,-1010.79,0.00032602,2]
[385363263,1757790842174,-655.9,0.00032602,2]
[385363264,1757790842184,-450.64,0.00032602,2]
[385363265,1757790842193,-1130.65,0.00032602,2]
[385363266,1757790842203,-1727.97,0.00032602,2]
[385363267,1757790842212,-971.87,0.00032602,2]
[385363268,1757790842221,-1049.74,0.00032602,2]
[385363269,1757790842230,-536.28,0.00032602,2]
[385363270,1757790842239,-920.05,0.00032602,2]
[385363271,1757790842248,-807.81,0.00032602,2]
[385363272,1757790842257,-1540.01,0.00032602,2]
[385363273,1757790842266,-767.61,0.00032602,2]
[385363274,1757790842276,-843.61,0.00032602,2]
[385363275,1757790842285,-798.34,0.00032602,2]
[385363276,1757790842295,-1507.18,0.00032602,2]
[385363277,1757790842304,-1074.98,0.00032602,2]
[385363278,1757790842313,-721.19,0.00032602,2]
[385363279,1757790842323,-8779.55,0.00032602,2]
[385363280,1757790842332,-1380.97,0.00032602,2]
[385363281,1757790842342,-1003.9,0.00032602,2]
[385363282,1757790842351,-594.63,0.00032602,2]
[385363283,1757790842361,-506.79,0.00032602,2]
[385363284,1757790842371,-649.71,0.00032602,2]
[385363285,1757790842380,-729.26,0.00032602,2]
[385363286,1757790842390,-813.26,0.00032602,2]
[385363287,1757790842399,-186.0,0.00032622,14]
[385363288,1757790842409,-179.18824018,0.0003263,30]
[385363289,1757790842418,-215.233605,0.0003265,2]
[385363290,1757790842428,-1300.0,0.00032704,7]
[385363291,1757790842439,-3000.0,0.00032704,7]
[385363292,1757790842449,-232.41,0.00032739,120]
[385363293,1757790842459,-210.0,0.0003276,30]
[385363294,1757790842468,-500.0,0.00032814,120]
[385363295,1757790842478,-500.0,0.00032846,120]
[385363296,1757790842487,-403.48,0.00032876,2]
[385363297,1757790842496,-409.12484825,0.00032876,2]
[385363298,1757790842511,-699.06,0.00032876,2]
[385363299,1757790842521,-888.74,0.00032876,2]
[385363300,1757790842530,-1067.33,0.00032876,2]
[385363301,1757790842540,-494.9,0.00032876,2]
[385363302,1757790842549,-400.0,0.00032876,2]
[385363303,1757790842558,-1011.1,0.00032876,2]
[385363304,1757790842568,-411.04,0.00032876,2]
[385363305,1757790842578,-400.0,0.00032876,2]
[385363306,1757790842587,-436.55,0.00032876,2]
[385363307,1757790842596,-415.46,0.00032876,2]
[385363308,1757790842606,-1222.47,0.00032876,2]
[385363309,1757790842615,-751.49,0.00032876,2]
[385363310,1757790842625,-622.37,0.00032876,2]
[385363311,1757790842634,-400.0,0.00032876,2]
[385363312,1757790842643,-400.0,0.00032876,2]
[385363313,1757790842652,-400.0,0.00032876,2]
[385363314,1757790842661,-401.51612726,0.00032876,2]
[385363315,1757790842670,-512.06,0.00032876,2]
[385363316,1757790842679,-516.89,0.00032876,2]
[385363317,1757790842688,-572.28,0.00032876,2]
[385363318,1757790842697,-405.34,0.00032876,2]
[385363319,1757790842706,-892.3,0.00032876,2]
[385363320,1757790842715,-2090.35,0.00032876,2]
[385363321,1757790842724,-445.77,0.00032876,2]
[385363322,1757790842733,-849.51,0.00032876,2]
[385363323,1757790842742,-764.33,0.00032876,2]
[385363324,1757790842751,-812.38,0.00032876,2]
[385363325,1757790842759,-579.38,0.00032876,2]
[385363326,1757790842768,-384.20375193,0.00032876,2]
[385363327,1757790842778,-1141.14,0.00032876,2]
[385363328,1757790842787,-650.0,0.00032876,120]
[385363329,1757790842795,-593.32,0.00032876,2]
[385363330,1757790842804,-400.0,0.00032876,2]
[385363331,1757790842814,-762.02,0.00032876,2]
[385363332,1757790842823,-400.0,0.00032876,2]
[385363333,1757790842832,-633.2,0.00032876,2]
[385363334,1757790842841,-548.72,0.00032876,2]
[385363335,1757790842849,-400.0,0.00032876,2]
[385363336,1757790842859,-411.96,0.00032876,2]
[385363337,1757790842867,-653.34,0.00032876,2]
[385363338,1757790842877,-891.73,0.00032876,2]
[385363339,1757790842887,-598.23,0.00032876,2]
[385363340,1757790842896,-1354.32,0.00032876,2]
[385363341,1757790842904,-518.98,0.00032876,2]
[385363342,1757790842914,-925.24,0.00032876,2]
[385363343,1757790842923,-722.44,0.00032876,2]
[385363344,1757790842933,-537.69549655,0.00032876,2]
[385363345,1757790842943,-506.66,0.00032876,2]
[385363346,1757790842952,-1909.11,0.00032876,2]
[385363347,1757790842961,-886.75,0.00032876,2]
[385363348,1757790842970,-1138.1,0.00032876,2]
[385363349,1757790842979,-400.0,0.00032876,2]
[385363350,1757790842988,-320.97124082,0.00032876,2]
[385363351,1757790842997,-576.48,0.00032876,2]
[385363352,1757790843006,-400.0,0.00032876,2]
[385363353,1757790843015,-400.0,0.00032876,2]
[385363354,1757790843025,-712.7,0.00032876,2]
[385363355,1757790843034,-400.0,0.00032876,2]
[385363356,1757790843043,-2782.51,0.00032876,2]
[385363357,1757790843053,-400.0,0.00032876,2]
[385363358,1757790843062,-400.0,0.00032876,2]
[385363359,1757790843072,-749.03,0.00032876,2]
[385363360,1757790843081,-476.93,0.00032876,2]
[385363361,1757790843091,-652.17,0.00032876,2]
[385363362,1757790843100,-1095.32,0.00032876,2]
[385363363,1757790843110,-778.01,0.00032876,2]
[385363364,1757790843119,-450.34,0.00032876,2]
[385363365,1757790843129,-623.72,0.00032876,2]
[385363366,1757790843138,-232.41,0.00032876,120]
[385363367,1757790843147,-522.52,0.00032876,2]
[385363368,1757790843158,-1025.68,0.00032876,2]
[385363369,1757790843167,-1547.47,0.00032876,2]
[385363370,1757790843176,-452.08,0.00032876,2]
[385363371,1757790843187,-954.04,0.00032876,2]
[385363372,1757790843196,-972.47,0.00032876,2]
[385363373,1757790843205,-440.6,0.00032876,2]
[385363374,1757790843215,-1107.3,0.00032876,2]
[385363375,1757790843225,-1360.89,0.00032876,2]
[385363376,1757790843235,-438.49,0.00032876,2]
[385363377,1757790843244,-511.89,0.00032876,2]
[385363378,1757790843253,-875.02,0.00032876,2]
[385363379,1757790843263,-441.06,0.00032876,2]
[385363380,1757790843273,-540.34,0.00032876,2]
[385363381,1757790843282,-432.57,0.00032876,2]
[385363382,1757790843291,-605.1,0.00032876,2]
[385363383,1757790843301,-979.03,0.00032876,2]
[385363384,1757790843310,-639.66,0.00032876,2]
[385363385,1757790843320,-743.92,0.00032876,2]
[385363386,1757790843329,-549.77,0.00032876,2]
[385363387,1757790843339,-757.51,0.00032876,2]
[385363388,1757790843348,-1369.33,0.00032876,2]